[Event "Doeberl Cup 2022"]
[Site "Canberra"]
[Date "2022.04.15"]
[Round "4.1"]
[White "Melkumyan, Hrant"]
[Black "Fernandez, Daniel Howard"]
[Result "1/2-1/2"]
[ECO "D39"]
[WhiteElo "2649"]
[BlackElo "2487"]
[Annotator "TA"]
[PlyCount "64"]
[EventDate "2022.04.14"]
[EventType "swiss"]
[EventCountry "AUS"]
[SourceTitle "playchess.com"]
[Source "ChessBase"]
[SourceQuality "1"]
[TimeControl "5400+30"]

{[%evp 15,64,20,19,13,17,11,16,24,19,-10,-10,-7,-9,-9,-21,-7,0,-14,-7,-10,-22,-8,0,-43,-41,-45,-40,-71,-50,-61,-42,-55,-37,-44,-45,-70,-54,-64,-49,-45,-46,-45,-29,-75,-77,-65,-56,-60,-50,-67,-68]} 1. d4 {[%emt 0:04:25]} Nf6 {[%emt 0:00:06]} 2. c4 {[%emt 0:00:39]} e6 {[%emt 0:08:16]} 3. Nf3 {[%emt 0:00:23]} d5 {[%emt 0:01:52]} 4. Nc3 {[%emt 0:00:15]} Bb4 {[%emt 0:07:56]} 5. Bg5 {[%emt 0:02:10]} dxc4 {[%emt 0:00:45]} 6. e4 {[%emt 0:01:18]} h6 {[%emt 0:01:06]} 7. Bxf6 {[%emt 0:00:35]} Qxf6 {[%emt 0:00:04]} 8. Bxc4 {[%emt 0:00:12]} c5 {[%emt 0:00:18][%cal Bc7c5,Bc5d4][%mdl 32] 8...c5 is better than 8...0-0.} 9. e5 {[%emt 0:00:43] D39: Queen's Gambit Declined: Ragozin Defence with 5 Bg5 dxc4.} Qd8 {[%emt 0:00:20]} 10. O-O {[%emt 0:00:10]} cxd4 {[%emt 0:01:23]} 11. Ne4 {[%emt 0:00:14] The position is equal.} O-O {[%emt 0:00:31]} 12. Qc1 {[%emt 0:00:06]} Qc7 {[%emt 0:10:21]} 13. Nf6+ {[%emt 0:03:23]} Kh8 {[%emt 0:00:33]} (13... gxf6 $2 14. exf6 Be7 15. Qxh6 $1 Bxf6 16. Qxf6 $18) 14. Rd1 {[%emt 0:00:15][%cal Od1d4]} Nd7 {[%emt 0:08:47]} 15. Rxd4 {[%emt 0:00:47][%cal Od4h4] Threatening mate with Rh4!} Be7 $1 {[%emt 0:08:37]} (15... Nxe5 $2 {[#]} 16. Rh4 $1 Ng4 17. Nxg4 $18) 16. Qf4 {[%emt 0:00:48][%cal Of6e8]} Bc5 {[%emt 0:11:19]} 17. Qe4 {[%emt 0:12:41][%csl Gf6][%cal Re4h7]} Nxf6 {[%emt 0:12:34]} (17... gxf6 18. Qh4 Kh7 19. exf6 Nxf6 20. Qxf6 Bxd4 21. Bd3+ Kg8 22. Nxd4 $18) 18. exf6 {[%emt 0:00:45]} gxf6 {[%emt 0:00:14][%cal Bg7f6,Bf6f5][%mdl 32] [#]} 19. Rd2 $146 {[%emt 0:03:30]} ({Of course not} 19. Bd3 f5 20. Qf4 Qxf4 21. Rxf4 Rd8 $17) ({Predecessor:} 19. Rdd1 f5 20. Qe2 Be7 21. Rac1 Bf6 22. Qd2 Kg7 23. Bxe6 Qb6 24. Bb3 Be6 25. Bxe6 Qxe6 {½-½ (50) Caruana,F (2823)-Anton Guijarro,D (2679) Wijk aan Zee 2021}) 19... f5 {[%emt 0:00:46]} 20. Qd3 {[%emt 0:17:38]} Be7 {[%emt 0:03:11]} 21. Rad1 {[%emt 0:01:40][%cal Od3e3]} Bf6 {[%emt 0:01:25]} 22. Qe3 {[%emt 0:14:05]} Kg7 {[%emt 0:01:06]} 23. Be2 {[%emt 0:00:10]} b5 {[%emt 0:04:18]} 24. Bxb5 {[%emt 0:04:43]} Rb8 {[%emt 0:00:53]} 25. Qe2 {[%emt 0:02:30]} Bb7 {[%emt 0:06:51] Threatens to win with ...Bxf3.} 26. Nd4 {[%emt 0:04:41][%cal Od4e6] Nxe6+! is the strong threat.} Qe5 {[%emt 0:01:35]} 27. Bc4 {[%emt 0:10:07]} Qxe2 {[%emt 0:00:44]} 28. Nxe2 {[%emt 0:00:06]} Rfd8 {[%emt 0:01:29]} 29. Nd4 {[%emt 0:01:15]} (29. Rxd8 $11 Rxd8 30. Rxd8 Bxd8 31. h3) 29... a5 {[%emt 0:02:10]} 30. b3 {[%emt 0:00:48]} Be7 {[%emt 0:01:54] A strong pair of Bishops. Black is slightly better.} 31. Nb5 {[%emt 0:05:40]} Kf6 {[%emt 0:01:55]} 32. Kf1 {[%emt 0:00:45]} Rxd2 {[%emt 0:01:04] Weighted Error Value: White=0.11 (very precise) /Black=0.03 (flawless)} 1/2-1/2

[Event "Doeberl Cup 2022"]
[Site "Canberra"]
[Date "2022.04.15"]
[Round "4.2"]
[White "Cheng, Bobby"]
[Black "Sardana, Rishi"]
[Result "1-0"]
[ECO "D31"]
[WhiteElo "2550"]
[BlackElo "2461"]
[Annotator "TA"]
[PlyCount "79"]
[EventDate "2022.04.14"]
[EventType "swiss"]
[EventCountry "AUS"]
[SourceTitle "playchess.com"]
[Source "ChessBase"]
[SourceQuality "1"]
[TimeControl "5400+30"]

{[%evp 9,79,22,30,25,35,29,23,25,15,29,26,27,14,20,25,14,18,18,31,22,40,5,45,31,97,97,69,36,30,27,56,40,154,170,170,172,171,164,144,142,185,164,131,60,79,51,58,60,58,0,0,0,0,0,81,78,114,117,285,245,29944,29937,12237,6195,12348,12146,12825,12824,8011,6203,6095,5956]} 1. d4 {[%emt 0:00:03]} d5 {[%emt 0:00:08]} 2. c4 {[%emt 0:00:14]} e6 {[%emt 0:00:05]} 3. Nf3 {[%emt 0:00:24]} a6 {[%emt 0:00:07]} 4. cxd5 {[%emt 0:00:30]} exd5 {[%emt 0:00:30]} 5. Nc3 {[%emt 0:01:05]} h6 {[%emt 0:00:00]} 6. Bf4 {[%emt 0:01:05] D31: Queen's Gambit Declined: Semi-Slav without ...Nf6 (+ Marshall Gambit and Noteboom) and Exchange Variation lines without ...Nf6.} Nf6 {[%emt 0:00:26] Prevents e4.} 7. e3 {[%emt 0:00:43]} Bd6 {[%emt 0:00:07]} 8. Be5 {[%emt 0:00:30] White has an edge.} c6 {[%emt 0:00:30][%cal Bc7c6,Bc6c5,Bc5c4][%mdl 32]} 9. Bd3 {[%emt 0:00:30]} O-O {[%emt 0:00:30]} 10. h3 {[%emt 0:00:30]} Re8 {[%emt 0:00:30]} 11. O-O {[%emt 0:00:30]} Bxe5 {[%emt 0:00:30]} 12. Nxe5 {[%emt 0:00:30]} c5 {[%emt 0:00:30]} 13. Rc1 {[%emt 0:00:30] [#]} c4 $146 {[%emt 0:00:30]} ({Predecessor:} 13... Qd6 14. Qf3 Be6 15. Qg3 cxd4 16. exd4 Nbd7 17. f4 Ne4 18. Qe1 Qb6 19. Qe3 Nxe5 20. fxe5 {½-½ (31) Vrolijk,L (2473)-Fataliyeva,U (2324) Sitges 2021}) 14. Bb1 {[%emt 0:00:30]} b5 {[%emt 0:00:30]} 15. f4 {[%emt 0:00:30]} Bb7 {[%emt 0:00:30]} (15... b4 $5 {[%cal Rb4c3]} 16. Ne2 a5 $11) 16. Qf3 {[%emt 0:00:30]} Ra7 {[%emt 0:00:30]} (16... Nc6 $14) 17. g4 $16 {[%emt 0:00:30] 0x0.00249b13221edp-1022s more active pieces. The black rooks are badly placed.} Ne4 {[%emt 0:00:30] Prevents g5.} 18. Bxe4 {[%emt 0:00:30]} (18. Nxe4 dxe4 19. Qg2 (19. Bxe4 Bxe4 20. Qxe4 f6 $15) 19... Bd5 $11) (18. g5 $5) 18... dxe4 {[%emt 0:00:30]} 19. Qg3 {[%emt 0:00:30]} ({Not} 19. Nxe4 $2 f6 20. b3 Bd5 21. bxc4 bxc4 22. Rxc4 fxe5 $19) 19... Nc6 {[%emt 0:00:30]} 20. Rc2 {[%emt 0:00:30]} Nb4 {[%emt 0:00:30]} (20... f6 $14) 21. Rg2 $1 {[%emt 0:00:30] Strongly threatening g5.} Nd3 {[%emt 0:00:30]} 22. g5 {[%emt 0:00:30]} hxg5 {[%emt 0:00:30]} 23. fxg5 {[%emt 0:00:30]} Nxe5 {[%emt 0:00:30]} 24. dxe5 {[%emt 0:00:30] Threatens to win with g6.} Re6 {[%emt 0:00:30] [#]} 25. Rf6 $3 {[%emt 0:00:30][%mdl 512] Hoping for Rxe6.} Qe7 {[%emt 0:00:30] [#]} 26. g6 $1 {[%emt 0:00:30][%mdl 512]} fxg6 $14 {[%emt 0:00:30]} 27. Rxg6 {[%emt 0:00:30]} Rxg6 {[%emt 0:00:30]} 28. Qxg6 {[%emt 0:00:30][%cal Oh3h4]} Ra8 $1 {[%emt 0:00:30]} 29. e6 {[%emt 0:00:30]} ({Reject} 29. Nxe4 Bxe4 30. Qxe4 Re8 $11) (29. Ne2 $14 Rf8 30. Rg5) 29... Rf8 $1 $11 {[%emt 0:00:30]} 30. Nxe4 {[%emt 0:00:30] The board is on fire.} Bxe4 {[%emt 0:00:30]} 31. Qxe4 {[%emt 0:00:30][%mdl 4096] Endgame KQR-KQR} Rf6 {[%emt 0:00:30] [#]} (31... Qf6 $11) 32. Rg6 $1 $16 {[%emt 0:00:30] Black must now prevent Rxf6.} Rxg6+ {[%emt 0:00:30]} 33. Qxg6 {[%emt 0:00:30] KQ-KQ} Kf8 $2 {[%emt 0:00:30] [#] Black cannot hold the game after this.} (33... a5 $16 {was worth a try.}) 34. Kf2 $1 $18 {[%emt 0:00:30]} Qf6+ $2 {[%emt 0:00:30]} (34... b4 $18 35. Kf3 a5) 35. Qxf6+ {[%emt 0:00:30]} gxf6 {[%emt 0:00:30]} 36. Kf3 {[%emt 0:00:30] White is clearly winning.} Ke7 {[%emt 0:00:30]} 37. Ke4 {[%emt 0:00:30]} Kxe6 {[%emt 0:00:30]} 38. a3 {[%emt 0:00:30]} a5 {[%emt 0:00:30]} 39. Kd4 {[%emt 0:00:30]} Kf5 {[%emt 0:00:30]} 40. Kc5 {[%emt 0:00:30] Weighted Error Value: White=0.08 (flawless) /Black=0.53} 1-0

[Event "Doeberl Cup 2022"]
[Site "Canberra"]
[Date "2022.04.15"]
[Round "4.3"]
[White "Kethro, Michael"]
[Black "Kuybokarov, Temur"]
[Result "0-1"]
[ECO "D85"]
[WhiteElo "2122"]
[BlackElo "2576"]
[Annotator "TA"]
[PlyCount "48"]
[EventDate "2022.04.14"]
[EventType "swiss"]
[EventCountry "AUS"]
[SourceTitle "playchess.com"]
[Source "ChessBase"]
[SourceQuality "1"]
[TimeControl "5400+30"]

{[%evp 11,48,30,31,13,1,7,8,0,2,16,17,0,0,0,0,0,0,0,0,-23,0,0,0,-28,-35,-43,-43,-56,-75,-142,-144,-238,-231,-311,-287,-259,-199,-312,-321]} 1. d4 {[%emt 0:00:04]} Nf6 {[%emt 0:04:02]} 2. c4 {[%emt 0:00:19]} g6 {[%emt 0:00:14]} 3. Nc3 {[%emt 0:00:46]} d5 {[%emt 0:00:16]} 4. cxd5 {[%emt 0:00:31]} Nxd5 {[%emt 0:00:09]} 5. e4 {[%emt 0:00:14]} Nxc3 {[%emt 0:00:11]} 6. bxc3 {[%emt 0:00:14]} Bg7 {[%emt 0:00:09][%cal Oc7c5]} 7. Bg5 {[%emt 0:01:09] 7.Nf3 is the modern continuation. D85: Exchange Grünfeld: Unusual White 7th moves and lines with 7 Nf3.} c5 {[%emt 0:00:17][%cal Rc5d4]} 8. Rc1 {[%emt 0:00:34]} O-O {[%emt 0:00:14][%cal Rc5d4]} 9. Nf3 {[%emt 0:00:15] The position is equal.} ({Of course not} 9. dxc5 Qa5 $15) 9... Bg4 {[%emt 0:00:23]} 10. d5 {[%emt 0:00:37]} Qd6 {[%emt 0:00:27]} 11. Be2 {[%emt 0:00:58]} Bxf3 {[%emt 0:00:14]} 12. Bxf3 {[%emt 0:06:25]} b5 {[%emt 0:00:30]} 13. O-O {[%emt 0:01:24]} Nd7 {[%emt 0:03:55][%cal Bb8d7,Bd7c5,Bc5a4,Ba4c3,Bc3a2][%mdl 32]} 14. Qd2 {[%emt 0:12:02]} c4 {[%emt 0:03:09] [#]} 15. Be3 $146 {[%emt 0:14:46]} ({Predecessor:} 15. Qe3 Nc5 16. Be2 e5 17. dxe6 Nxe6 18. Rfd1 Qa3 19. Bh4 Rfe8 20. Rd5 Nc7 21. Rd7 Ne6 22. Rd5 Nc7 23. Rd7 Ne6 24. Rd5 Nc7 {½-½ (24) Lysyj,I (2623)-Drygalov,A (2494) Yaroslavl 2019}) 15... Rfd8 {[%emt 0:29:00]} 16. g3 {[%emt 0:17:04]} a5 {[%emt 0:09:11]} 17. Be2 {[%emt 0:05:33]} Nc5 {[%emt 0:46:39]} 18. Qc2 {[%emt 0:09:24]} Na4 {[%emt 0:00:30]} 19. Bxc4 {[%emt 0:14:38]} Nxc3 {[%emt 0:00:00]} 20. Be2 {[%emt 0:00:39]} (20. Bd3 $142) 20... Qa3 $17 {[%emt 0:00:00] &Nero is more active.} 21. Bf3 {[%emt 0:02:30]} (21. Bd3 $17 {keeps fighting.}) 21... Nxa2 $19 {[%emt 0:00:00]} ({Not} 21... Qxa2 22. Qxa2 Nxa2 23. Rc7 $15) 22. Rcd1 {[%emt 0:07:09]} Rac8 {[%emt 0:00:00]} 23. Qd2 {[%emt 0:02:38][%cal Od1a1]} Nc3 {[%emt 0:00:00]} 24. Rc1 {[%emt 0:01:14]} (24. Ra1 {was called for.} Ne2+ 25. Bxe2 Bxa1 26. Bxb5) 24... b4 {[%emt 0:00:00] Weighted Error Value: White=0.28 (precise) /Black=0.04 (flawless)} 0-1

[Event "Doeberl Cup 2022"]
[Site "Canberra"]
[Date "2022.04.15"]
[Round "4.4"]
[White "Press, Harry"]
[Black "Ikeda, Junta"]
[Result "1-0"]
[ECO "B52"]
[WhiteElo "2114"]
[BlackElo "2457"]
[Annotator "TA"]
[PlyCount "103"]
[EventDate "2022.04.14"]
[EventType "swiss"]
[EventCountry "AUS"]
[SourceTitle "playchess.com"]
[Source "ChessBase"]
[SourceQuality "1"]
[TimeControl "5400+30"]

{[%evp 9,103,0,21,17,27,13,22,-5,27,25,29,-36,-11,-73,-79,-80,-70,-72,-70,-104,-83,-83,-87,-86,-75,-93,-88,-82,0,-114,-112,-116,-121,-106,-107,-125,-127,-123,-130,-127,-129,-129,-127,-121,-111,-114,-97,-135,-137,-204,-128,-128,-128,-120,-122,-188,-193,-187,-183,-165,0,0,31,34,35,31,237,243,436,484,610,329,322,21,49,47,589,580,581,579,554,509,433,446,444,421,2735,2470,1168,906,29986,29987,29987,29988,29990,29991]} 1. e4 {[%emt 0:00:07]} c5 {[%emt 0:00:14]} 2. Nf3 {[%emt 0:01:04]} d6 {[%emt 0:00:10]} 3. Bb5+ {[%emt 0:00:09]} Bd7 {[%emt 0:00:23]} 4. c4 {[%emt 0:00:47]} Nf6 {[%emt 0:00:04]} 5. Nc3 {[%emt 0:00:15]} g6 {[%emt 0:00:05]} 6. O-O {[%emt 0:02:03] B52: Sicilian: Moscow Variation with 3...Bd7.} Bg7 {[%emt 0:00:06]} 7. d4 {[%emt 0:00:39]} cxd4 {[%emt 0:00:05]} 8. Nxd4 {[%emt 0:00:12] The position is equal.} O-O {[%emt 0:00:07]} 9. Bxd7 {[%emt 0:02:39]} Nbxd7 {[%emt 0:00:27]} 10. f3 {[%emt 0:04:54]} ({Better is} 10. Be3 $11) 10... a6 {[%emt 0:00:49] [#]} 11. a4 $146 {[%emt 0:02:43]} (11. b3 $11) ({Predecessor:} 11. b3 Rc8 12. Bb2 Nc5 13. Rc1 e6 14. Qd2 Nfd7 15. Nde2 Ne5 16. Rcd1 Ncd3 17. Ba3 {0-1 (31) Mammadova,G (2382)-Muradli,M (2449) Chess.com INT 2020}) 11... Qb6 $17 {[%emt 0:07:50]} 12. a5 {[%emt 0:11:28]} Qc5 {[%emt 0:01:42]} 13. Be3 {[%emt 0:00:43][%cal Od4f5]} Qxc4 {[%emt 0:01:51]} 14. Rc1 {[%emt 0:00:44][%cal Oc3b5]} Qc7 {[%emt 0:05:45]} 15. b4 {[%emt 0:04:36]} Rfc8 {[%emt 0:03:09]} 16. Qb3 {[%emt 0:02:22]} Qd8 {[%emt 0:04:13]} 17. Rfd1 {[%emt 0:04:49]} Ne5 {[%emt 0:08:40]} 18. Na4 {[%emt 0:07:07]} Ned7 {[%emt 0:10:19] Inhibits Nb6.} ({Black should try} 18... Rxc1 $17 19. Bxc1 Rb8) 19. h3 {[%emt 0:04:03]} (19. Nc3 $1 $11) 19... Rxc1 {[%emt 0:24:09]} 20. Bxc1 {[%emt 0:01:38]} Rc8 {[%emt 0:01:05]} 21. Bb2 {[%emt 0:02:49]} Bh6 {[%emt 0:01:51]} 22. Rd3 {[%emt 0:08:08]} Nh5 {[%emt 0:05:45]} 23. Ne2 {[%emt 0:04:12]} Nf4 {[%emt 0:03:09]} 24. Nxf4 {[%emt 0:04:01]} Bxf4 {[%emt 0:00:04]} 25. Rc3 {[%emt 0:03:44]} e6 {[%emt 0:09:43]} 26. Qc2 {[%emt 0:08:46]} Rxc3 {[%emt 0:11:45]} (26... Be3+ $2 27. Kh1 Rxc3 28. Qxc3 $18) 27. Qxc3 {[%emt 0:19:18][%csl Gb2][%cal Rc3h8]} Ne5 {[%emt 0:00:30]} 28. Nb6 {[%emt 0:00:30]} h5 {[%emt 0:00:30]} 29. Kf1 {[%emt 0:00:00]} (29. Nc4 $17) 29... Kh7 {[%emt 0:00:30]} 30. Bc1 {[%emt 0:00:00]} Bxc1 {[%emt 0:00:00]} 31. Qxc1 {[%emt 0:00:00]} Qe8 {[%emt 0:00:00]} 32. Qc7 {[%emt 0:02:00]} (32. Kg1 $17 {was called for.}) 32... Qb5+ $19 {[%emt 0:01:30]} 33. Kg1 {[%emt 0:00:30]} Qxb4 {[%emt 0:00:00]} 34. f4 {[%emt 0:00:00]} Qd4+ {[%emt 0:00:19]} ({And not} 34... Qxa5 35. fxe5 Qa1+ 36. Kf2 Qb2+ 37. Kg1 Qd4+ 38. Kf1 Qd3+ 39. Kg1 Qd4+ 40. Kf1 Qd3+ 41. Kg1 Qd4+ $11) (34... Qe1+ $19 35. Kh2 Nf3+ $1 {[%mdl 512]} 36. gxf3 Qf2+ 37. Kh1 Qxf3+ 38. Kh2 Qxf4+ 39. Kg2 Qxe4+ 40. Kf2 Qf5+ 41. Ke2 Qe5+ 42. Kd3 Qf5+ 43. Ke2 Qe5+ 44. Kd3 Qg3+ 45. Kd2 Kg7) 35. Kh2 $11 {[%emt 0:00:20]} Nd3 {[%emt 0:00:37] aiming for ...Kg7.} 36. Qxf7+ {[%emt 0:00:34]} Qg7 {[%emt 0:00:24]} 37. Qxe6 {[%emt 0:00:12]} Qf8 {[%emt 0:00:32]} (37... Nxf4 $14 38. Qxd6 g5) 38. f5 $18 {[%emt 0:00:42] Threatens to win with Nd7.} gxf5 $2 {[%emt 0:00:32]} (38... Nf4 39. Qd7+ Kh6 40. Qxb7 Qg7 41. Qxa6 Qe5) 39. Nd7 {[%emt 0:00:16][%mdl 64] Deflection} ({Less strong is} 39. exf5 Ne5 40. Nc4 Nxc4 $16) 39... Qg7 {[%emt 0:00:32][%cal Og7g2]} 40. Qxf5+ {[%emt 0:00:39]} Kh6 {[%emt 0:00:26] [#]} 41. h4 $2 {[%emt 0:00:44]} (41. Qe6+ $1 $18 Qg6 42. Qe7) 41... Qe7 $1 $11 {[%emt 0:00:32]} 42. g3 {[%emt 0:00:26]} Ne5 $2 {[%emt 0:00:33][%mdl 8192] [#]} (42... Kg7 $14) 43. Nf6 $1 $18 {[%emt 0:00:24][%csl Gh4][%cal Rf5g5]} Kg7 {[%emt 0:00:30]} 44. Nxh5+ {[%emt 0:00:19]} Kh8 {[%emt 0:00:27]} 45. Nf6 {[%emt 0:00:52] Black must now prevent h5.} Kg7 {[%emt 0:00:08]} 46. Ng4 {[%emt 0:00:29] Hoping for Nxe5.} ({Weaker is} 46. Qg5+ Kf7 47. Nd5 Qxg5 48. hxg5 Nc4 $17) 46... Nf7 {[%emt 0:00:54]} 47. h5 {[%emt 0:00:16] Qg6+ is the strong threat.} d5 {[%emt 0:00:26]} (47... Qg5 $142 48. Kh3 Qc1) 48. Qg6+ {[%emt 0:00:31]} Kf8 {[%emt 0:00:22]} 49. Nf6 {[%emt 0:00:15][%csl Gf6][%cal Rg6g8]} Qa3 {[%emt 0:00:41]} 50. Qg8+ {[%emt 0:00:16] White mates.} Ke7 {[%emt 0:00:04]} 51. Nxd5+ {[%emt 0:00:04]} Kd7 {[%emt 0:00:57]} 52. Qxf7+ {[%emt 0:00:08] Weighted Error Value: White=0.33/Black=0.49} 1-0

[Event "Doeberl Cup 2022"]
[Site "Canberra"]
[Date "2022.04.15"]
[Round "4.5"]
[White "Clarke, Matthew"]
[Black "Bjelobrk, Igor"]
[Result "1/2-1/2"]
[ECO "A46"]
[WhiteElo "2109"]
[BlackElo "2403"]
[Annotator "TA"]
[PlyCount "48"]
[EventDate "2022.04.14"]
[EventType "swiss"]
[EventCountry "AUS"]
[SourceTitle "playchess.com"]
[Source "ChessBase"]
[SourceQuality "1"]
[TimeControl "5400+30"]

{[%evp 15,48,-2,4,-5,0,-12,-20,-40,-35,-27,-31,-32,5,0,0,0,-1,-10,-10,-13,-8,-10,-14,-9,-8,-5,-4,-4,-7,-3,-8,-12,0,-9,-6]} 1. Nf3 {[%emt 0:00:40]} d5 {[%emt 0:00:10]} 2. g3 {[%emt 0:00:26]} Nd7 {[%emt 0:00:13]} 3. d4 {[%emt 0:01:21]} e6 {[%emt 0:01:07]} 4. Bg2 {[%emt 0:00:48]} b5 {[%emt 0:00:39]} 5. O-O {[%emt 0:01:01]} Ngf6 {[%emt 0:01:55]} 6. b3 {[%emt 0:01:06]} Bb7 {[%emt 0:01:23]} 7. c4 {[%emt 0:02:51]} dxc4 {[%emt 0:00:22]} 8. bxc4 {[%emt 0:00:13]} bxc4 {[%emt 0:00:11]} 9. Qa4 {[%emt 0:08:37] 9.Na3 is not played anymore. A46: 1 d4 Nf6 2 Nf3 e6: Torre, London and Colle Systems.} c5 {[%emt 0:11:03]} 10. Qxc4 {[%emt 0:07:09]} Rc8 {[%emt 0:03:23]} 11. Ne5 {[%emt 0:07:40] [#]} cxd4 $1 {[%emt 0:09:37]} 12. Qxd4 {[%emt 0:02:08] [#]} Bxg2 $146 {[%emt 0:25:15]} ({Predecessor:} 12... Bc5 13. Qa4 Bxg2 14. Kxg2 O-O 15. Rd1 Nb6 16. Rxd8 Nxa4 17. Rxf8+ Rxf8 18. Nf3 e5 {0-1 (40) Sisniega,M (2390)-Sveshnikov,E (2545) Cienfuegos 1979}) 13. Kxg2 {[%emt 0:00:55]} Rc2 {[%emt 0:06:05]} 14. Nxd7 {[%emt 0:29:02] The position is equal.} (14. Bf4 {looks sharper.} Qa8+ 15. Kg1 Qe4 16. Qxe4 Nxe4 17. Nxd7 Kxd7 18. Rd1+) 14... Qxd7 {[%emt 0:00:19]} 15. Qxd7+ {[%emt 0:00:46]} Nxd7 {[%emt 0:01:05]} 16. Be3 {[%emt 0:01:48]} Bc5 {[%emt 0:08:20]} ({Don't take} 16... Rxe2 17. Rc1 $16) 17. Bxc5 {[%emt 0:01:54]} Rxc5 {[%emt 0:00:26]} 18. Nd2 {[%emt 0:01:40]} Ke7 {[%emt 0:00:18]} 19. Rfb1 {[%emt 0:15:02]} Rc2 {[%emt 0:03:32]} 20. Nf3 {[%emt 0:00:21]} Rhc8 {[%emt 0:01:54]} 21. Rb7 {[%emt 0:01:41]} R8c7 {[%emt 0:01:16]} 22. Rxc7 {[%emt 0:01:34]} Rxc7 {[%emt 0:00:05]} 23. Rb1 {[%emt 0:00:27]} e5 {[%emt 0:01:27]} 24. e3 {[%emt 0:02:26]} f6 {[%emt 0:00:29] Weighted Error Value: White=0.05 (flawless) /Black=0.05 (flawless)} 1/2-1/2